fUST/lending_fUST_20240324
["ID","MTS","AMOUNT","RATE_DAILY","PERIOD"]
[320236420,1711224647854,-500.0,0.00024657,2]
[320236422,1711224647863,-2417.88,0.00024657,2]
[320236424,1711224647872,-502.33636039,0.00024657,2]
[320236426,1711224647880,-500.0,0.00024657,2]
[320236427,1711224647888,-500.0,0.00024657,2]
[320236429,1711224647897,-634.04,0.00024657,2]
[320236431,1711224647906,-500.0,0.00024657,2]
[320236433,1711224647915,-1303.81,0.00024657,2]
[320236435,1711224647924,-500.0,0.00024657,2]
[320236437,1711224647933,-944.61,0.00024657,2]
[320236439,1711224647942,-500.0,0.00024657,2]
[320236441,1711224647951,-500.0,0.00024657,2]
[320236444,1711224647962,-1401.6,0.00024657,2]
[320236446,1711224647970,-154.93802479,0.00024657,2]
[320236448,1711224647979,-1235.34,0.00024657,2]
[320236449,1711224647988,-500.0,0.00024657,2]
[320236451,1711224647998,-304.76891661,0.00024657,2]
[320236453,1711224648008,-3299.5,0.00024657,2]
[320236455,1711224648016,-500.0,0.00024657,2]
[320236457,1711224648025,-290.32762425,0.00024657,2]
[320236459,1711224648035,-500.0,0.00024657,2]
[320236461,1711224648044,-292.68442159,0.00024657,2]
[320236463,1711224648053,-503.65800238,0.00024657,2]
[320236465,1711224648063,-501.82557355,0.00024657,2]
[320236467,1711224648072,-603.16,0.00024657,2]
[320236469,1711224648081,-500.0,0.00024657,2]
[320236471,1711224648091,-500.0,0.00024657,2]
[320236473,1711224648100,-500.75488733,0.00024657,2]
[320236475,1711224648109,-1216.7,0.00024657,2]
[320236477,1711224648118,-500.0,0.00024657,2]
[320236479,1711224648126,-500.0,0.00024657,2]
[320236481,1711224648135,-151.0,0.00024657,2]
[320236483,1711224648145,-500.0,0.00024657,2]
[320236485,1711224648154,-500.0,0.00024657,2]
[320236487,1711224648163,-13518.97,0.00024657,2]
[320236489,1711224648172,-500.0,0.00024657,2]
[320236491,1711224648181,-500.0,0.00024657,2]
[320236493,1711224648190,-500.0,0.00024657,2]
[320236495,1711224648200,-500.0,0.00024657,2]
[320236497,1711224648210,-3342.31,0.00024657,2]
[320236499,1711224648219,-500.0,0.00024657,2]
[320236501,1711224648228,-500.0,0.00024657,2]
[320236503,1711224648236,-500.0,0.00024657,2]
[320236505,1711224648247,-500.0,0.00024657,2]
[320236507,1711224648256,-1644.92991,0.00024657,2]
[320236509,1711224648267,-1644.92991,0.00024657,2]
[320236511,1711224648276,-354.96040119,0.00024657,2]
[320236513,1711224648285,-603.62788937,0.00024657,2]
[320236515,1711224648294,-1644.92991,0.00024657,2]
[320236517,1711224648304,-1644.92991,0.00024657,2]
[320236519,1711224648313,-500.0,0.00024657,2]
[320236521,1711224648322,-242.6384624,0.00024657,2]
[320236524,1711224648331,-500.0,0.00024657,2]
[320236525,1711224648340,-500.0,0.00024657,2]
[320236527,1711224648350,-500.0,0.00024657,2]
[320236530,1711224648359,-151.0,0.00024657,2]
[320236531,1711224648368,-151.0,0.00024657,2]
[320236533,1711224648377,-13694.12,0.00024657,2]
[320236535,1711224648387,-907.79,0.00024657,2]
[320236537,1711224648396,-500.0,0.00024657,2]
[320236539,1711224648405,-500.0,0.00024657,2]
[320236541,1711224648414,-557.110011,0.00024657,2]
[320236543,1711224648424,-557.110011,0.00024657,2]
[320236545,1711224648438,-1397.92,0.00024657,2]
[320236548,1711224648447,-557.110011,0.00024657,2]
[320236549,1711224648456,-557.110011,0.00024657,2]
[320236551,1711224648466,-2838.61,0.00024657,2]
[320236553,1711224648477,-502.22825287,0.00024657,2]
[320236555,1711224648486,-500.0,0.00024657,2]
[320236557,1711224648495,-844.13,0.00024657,2]
[320236559,1711224648504,-585.56881895,0.00024657,2]
[320236561,1711224648513,-745.12,0.00024657,2]
[320236563,1711224648523,-500.0,0.00024657,2]
[320236565,1711224648532,-500.57287378,0.00024657,2]
[320236567,1711224648541,-500.0,0.00024657,2]
[320236569,1711224648550,-834.11,0.00024657,2]
[320236571,1711224648559,-500.0,0.00024657,2]
[320236573,1711224648568,-151.0,0.00024657,2]
[320236575,1711224648576,-500.0,0.00024657,2]
[320236577,1711224648585,-151.0,0.00024657,2]
[320236579,1711224648594,-160.653765,0.00024657,2]
[320236581,1711224648603,-500.0,0.00024657,2]
[320236583,1711224648612,-501.8999409,0.00024657,2]
[320236585,1711224648621,-500.0,0.00024657,2]
[320236587,1711224648630,-500.0,0.00024657,2]
[320236589,1711224648639,-500.0,0.00024657,2]
[320236591,1711224648648,-500.0,0.00024657,2]
[320236593,1711224648657,-500.0,0.00024657,2]
[320236595,1711224648666,-402.18256446,0.00024657,2]
[320236597,1711224648675,-608.07,0.00024657,2]
[320236599,1711224648684,-500.0,0.00024657,2]
[320236601,1711224648693,-503.00990635,0.00024657,2]
[320236603,1711224648702,-500.0,0.00024657,2]
[320236604,1711224648711,-502.81569042,0.00024657,30]
[320236606,1711224648721,-2665.58,0.00024657,2]
[320236608,1711224648730,-166.666666,0.00024658,2]
[320236611,1711224648739,-151.0,0.00024692,2]
[320236613,1711224648750,-151.0,0.00024692,2]
[320236615,1711224648759,-151.0,0.00024692,2]
[320236616,1711224648769,-7755.00362505,0.00024692,2]
[320236618,1711224648778,-500.0,0.00024716,2]
[320236621,1711224648789,-500.0,0.00024716,2]
[320236623,1711224648797,-632.49565172,0.00024716,2]
[320236624,1711224648806,-500.0,0.00024716,2]
[320236626,1711224648816,-500.0,0.00024716,2]
[320236629,1711224648825,-500.0,0.00024716,2]
[320236631,1711224648836,-500.0,0.00024716,2]
[320236633,1711224648846,-500.0,0.00024716,2]
[320236635,1711224648855,-490.58838368,0.00024717,2]
[320236636,1711224648864,-500.0,0.00024717,2]
[320236638,1711224648873,-501.11833091,0.00024717,2]
[320236640,1711224648882,-500.0,0.00024717,2]
[320236642,1711224648891,-500.0,0.00024717,2]
[320236644,1711224648899,-500.0,0.00024717,2]
[320236646,1711224648908,-500.0,0.00024717,2]
[320236648,1711224648918,-500.97614322,0.00024717,2]
[320236650,1711224648927,-500.0,0.00024717,2]
[320236652,1711224648937,-501.63350144,0.00024717,2]
[320236654,1711224648946,-500.0,0.00024717,2]
[320236656,1711224648955,-501.48109266,0.00024717,2]
[320236658,1711224648964,-151.0,0.00024717,2]
[320236660,1711224648973,-500.0,0.00024717,2]
[320236662,1711224648983,-500.0,0.00024717,2]
[320236664,1711224648992,-151.0,0.00024717,2]
[320236666,1711224649001,-151.0,0.00024717,2]
[320236668,1711224649011,-151.0,0.00024717,2]
[320236670,1711224649020,-151.0,0.00024717,2]
[320236672,1711224649029,-500.0,0.00024717,2]
[320236674,1711224649038,-500.0,0.00024717,2]
[320236676,1711224649047,-500.0,0.00024717,2]
[320236678,1711224649057,-500.0,0.00024717,2]
[320236680,1711224649066,-151.0,0.00024717,2]
[320236682,1711224649075,-151.0,0.00024717,2]
[320236684,1711224649083,-151.0,0.00024717,2]
[320236686,1711224649092,-1644.92991,0.00024717,2]
[320236688,1711224649101,-1644.92991,0.00024717,2]
[320236690,1711224649109,-173.126863,0.00024717,2]
[320236692,1711224649119,-557.110011,0.00024717,2]
[320236694,1711224649129,-557.110011,0.00024717,2]
[320236696,1711224649138,-151.0,0.00024717,2]
[320236698,1711224649147,-13000.16765188,0.00024718,2]
[320236700,1711224649156,-151.0,0.00024718,2]
[320236702,1711224649165,-151.0,0.00024718,2]
[320236704,1711224649173,-162.594862,0.00024718,2]
[320236706,1711224649182,-400.0,0.000248,2]
[320236708,1711224649191,-1528.26040122,0.00024817,2]
[320236709,1711224649200,-841.88162538,0.00024831,2]
[320237012,1711224652136,1198.56501507,0.0002,2]
[320239695,1711224786635,155.52982952,0.0002,2]
[320240345,1711225838504,-187.70475787,0.00022538,2]
[320240347,1711225838513,-931.26926936,0.00022539,2]
[320240349,1711225838523,-325.93484737,0.0002254,2]
[320240351,1711225838532,-10610.29149472,0.00022558,2]
[320240544,1711225840465,-1444.90887468,0.00022558,2]
[320240546,1711225840474,-231.64464,0.00022697,2]
[320240548,1711225840483,-500.0,0.00022936,2]
[320240550,1711225840494,-500.0,0.00022936,2]
[320240552,1711225840503,-472.21230183,0.00022936,2]
[320240555,1711225840514,-154.93802479,0.00023425,2]
[320240556,1711225840523,-232.65716621,0.00023999,2]
[320240558,1711225840533,-537.80152674,0.00023999,2]
[320240561,1711225840543,-1465.4036425,0.00024,2]
[320240563,1711225840555,-339.64638281,0.00024,2]
[320240565,1711225840566,-6992.15225297,0.00024,2]
[320240567,1711225840577,-7329.42455004,0.00024,2]
[320240569,1711225840589,-49559.96490252,0.00024,2]
[320240840,1711225846595,-692.74838828,0.00024,2]
[320240841,1711225846605,-1717.5584212,0.00024557,2]
[320240842,1711225846614,-1721.66047521,0.00024655,2]
[320240843,1711225846623,-325.53693448,0.00024656,2]
[320240844,1711225846633,-365.36982803,0.00024656,2]
[320240845,1711225846642,-500.0,0.00024657,2]
[320240846,1711225846652,-500.0,0.00024657,2]
[320240847,1711225846661,-164.53920778,0.00024657,2]
[320240848,1711225846670,-500.0,0.00024657,2]
[320240849,1711225846680,-500.0,0.00024657,2]
[320240850,1711225846690,-500.0,0.00024657,2]
[320240851,1711225846700,-500.0,0.00024657,2]
[320240852,1711225846709,-500.0,0.00024657,2]
[320240853,1711225846719,-498.80268368,0.00024657,2]
[320240854,1711225846729,-500.0,0.00024657,2]
[320240855,1711225846738,-500.63617148,0.00024657,2]
[320240856,1711225846749,-500.0,0.00024657,2]
[320240857,1711225846758,-500.0,0.00024657,2]
[320240858,1711225846768,-500.0,0.00024657,2]
[320240859,1711225846778,-500.0,0.00024657,2]
[320240860,1711225846789,-501.93506597,0.00024657,2]
[320240861,1711225846799,-500.0,0.00024657,2]
[320240862,1711225846811,-427.53366142,0.00024657,2]
[320240863,1711225846824,-500.0,0.00024657,2]
[320240864,1711225846835,-501.52827792,0.00024657,2]
[320240865,1711225846844,-500.0,0.00024657,2]
[320240866,1711225846855,-500.54260775,0.00024657,2]
[320240867,1711225846866,-500.0,0.00024657,2]
[320240868,1711225846875,-500.0,0.00024657,2]
[320240869,1711225846884,-500.0,0.00024657,2]
[320240870,1711225846895,-1035.02,0.00024657,2]
[320240871,1711225846904,-501.86683619,0.00024657,2]
[320240872,1711225846914,-501.32276943,0.00024657,2]
[320240873,1711225846923,-554.46227454,0.00024657,2]
[320240874,1711225846932,-500.0,0.00024657,2]
[320240875,1711225846942,-500.0,0.00024657,2]
[320240876,1711225846951,-501.65502468,0.00024657,2]
[320240877,1711225846961,-500.0,0.00024657,2]
[320240878,1711225846970,-1531.05,0.00024657,2]
[320240879,1711225846980,-500.0,0.00024657,2]
[320240880,1711225846990,-500.0,0.00024657,2]
[320240881,1711225847000,-500.0,0.00024657,2]
[320240882,1711225847010,-500.0,0.00024657,2]
[320240883,1711225847018,-500.0,0.00024657,2]
[320240884,1711225847028,-401.74158182,0.00024657,2]
[320240885,1711225847037,-500.0,0.00024657,2]
[320240886,1711225847046,-500.0,0.00024657,2]
[320240887,1711225847057,-500.0,0.00024657,2]
[320240888,1711225847066,-501.02160092,0.00024657,2]
[320240889,1711225847076,-500.0,0.00024657,2]
[320240890,1711225847086,-500.0,0.00024657,2]
[320240891,1711225847095,-500.0,0.00024657,2]
[320240892,1711225847105,-500.0,0.00024657,2]
[320240893,1711225847114,-500.0,0.00024657,2]
[320240894,1711225847124,-500.0,0.00024657,2]
[320240895,1711225847133,-500.0,0.00024657,2]
[320240896,1711225847142,-245.96727313,0.00024657,2]
[320240897,1711225847151,-570.62676742,0.00024657,2]
[320240898,1711225847161,-500.0,0.00024657,2]
[320240899,1711225847170,-500.0,0.00024657,2]
[320240900,1711225847180,-500.0,0.00024657,2]
[320240901,1711225847189,-500.0,0.00024657,2]
[320240902,1711225847199,-500.0,0.00024657,2]
[320240903,1711225847208,-500.86802272,0.00024657,2]
[320240904,1711225847217,-500.0,0.00024657,2]
[320240905,1711225847227,-500.0,0.00024657,2]
[320240906,1711225847236,-500.0,0.00024657,2]
[320240907,1711225847246,-500.0,0.00024657,2]
[320240908,1711225847257,-500.0,0.00024657,2]
[320240909,1711225847266,-500.0,0.00024657,2]
[320240910,1711225847275,-486.01118712,0.00024657,2]
[320240911,1711225847284,-500.0,0.00024657,2]
[320240912,1711225847293,-1276.06,0.00024657,2]
[320240913,1711225847303,-500.0,0.00024657,2]
[320240914,1711225847312,-1141.74,0.00024657,2]
[320240915,1711225847322,-500.0,0.00024657,2]
[320240916,1711225847331,-500.0,0.00024657,2]
[320240917,1711225847342,-500.0,0.00024657,2]
[320240918,1711225847351,-500.0,0.00024657,2]
[320240919,1711225847360,-151.0,0.00024657,2]
[320240920,1711225847370,-500.0,0.00024657,2]
[320240921,1711225847379,-151.0,0.00024657,2]
[320240922,1711225847388,-500.0,0.00024657,2]
[320240923,1711225847398,-500.0,0.00024657,2]
[320240924,1711225847408,-500.0,0.00024657,2]
[320240925,1711225847418,-1130.32,0.00024657,2]
[320240926,1711225847428,-500.0,0.00024657,2]
[320240927,1711225847437,-2391.68,0.00024657,2]
[320240928,1711225847447,-9811.46,0.00024657,2]
[320240929,1711225847456,-500.0,0.00024657,2]
[320240930,1711225847465,-1343.2,0.00024657,2]
[320240931,1711225847475,-905.25,0.00024657,2]
[320240932,1711225847485,-500.0,0.00024657,2]
[320240933,1711225847495,-500.0,0.00024657,2]
[320240934,1711225847505,-500.0,0.00024657,2]
[320240935,1711225847515,-1183.87,0.00024657,2]
[320240936,1711225847524,-300.06855645,0.00024657,2]
[320240937,1711225847534,-500.0,0.00024657,2]
[320240938,1711225847543,-500.0,0.00024657,2]
[320240939,1711225847553,-1249.48,0.00024657,2]
[320240940,1711225847562,-351.62308224,0.00024657,2]
[320240941,1711225847571,-514.51,0.00024657,2]
[320240942,1711225847581,-3162.02,0.00024657,2]
[320240943,1711225847590,-500.0,0.00024657,2]
[320240944,1711225847600,-500.0,0.00024657,2]
[320240945,1711225847609,-1166.0,0.00024657,2]
[320240946,1711225847618,-500.0,0.00024657,2]
[320240947,1711225847628,-500.0,0.00024657,2]
[320240948,1711225847637,-500.0,0.00024657,2]
[320240949,1711225847646,-607.62,0.00024657,2]
[320240950,1711225847655,-151.0,0.00024657,2]
[320240951,1711225847665,-500.0,0.00024657,2]
[320240952,1711225847673,-500.0,0.00024657,2]
[320240953,1711225847683,-500.0,0.00024657,2]
[320240954,1711225847692,-578.03,0.00024657,2]
[320240955,1711225847702,-1339.67,0.00024657,2]
[320240956,1711225847711,-500.0,0.00024657,2]
[320240957,1711225847720,-500.0,0.00024657,2]
[320240958,1711225847729,-1076.56,0.00024657,2]
[320240959,1711225847740,-13123.53,0.00024657,2]
[320240960,1711225847752,-247.61489584,0.00024657,2]
[320240961,1711225847762,-3203.05,0.00024657,2]
[320240962,1711225847771,-869.97,0.00024657,2]
[320240963,1711225847780,-1162.386096,0.00024657,2]
[320240964,1711225847789,-1162.386096,0.00024657,2]
[320240966,1711225847799,-500.0,0.00024657,2]
[320240968,1711225847809,-2720.34,0.00024657,2]
[320240969,1711225847820,-500.0,0.00024657,2]
[320240971,1711225847830,-500.0,0.00024657,2]
[320240973,1711225847839,-570.22,0.00024657,2]
[320240975,1711225847850,-714.07,0.00024657,2]
[320240976,1711225847860,-500.0,0.00024657,2]
[320240978,1711225847869,-500.0,0.00024657,2]
[320240979,1711225847877,-500.0,0.00024657,2]
[320240980,1711225847887,-582.73,0.00024657,2]
[320240982,1711225847897,-1021.91,0.00024657,2]
[320240984,1711225847908,-808.95,0.00024657,2]
[320240986,1711225847917,-1083.29,0.00024657,2]
[320240988,1711225847926,-389.977007,0.00024657,2]
[320240990,1711225847935,-500.0,0.00024657,2]
[320240992,1711225847944,-389.977007,0.00024657,2]
[320240994,1711225847954,-799.36,0.00024657,2]
[320240996,1711225847963,-500.0,0.00024657,2]
[320241012,1711225848096,-500.0,0.00024657,2]
[320241014,1711225848106,-643.01,0.00024657,2]
[320241016,1711225848116,-500.0,0.00024657,2]
[320241018,1711225848125,-2554.51,0.00024657,2]
[320241020,1711225848135,-4238.09733146,0.00024657,2]
[320241023,1711225848154,-8068.47266854,0.00024657,2]
[320241025,1711225848163,-151.0,0.00024657,2]
[320241027,1711225848172,-500.0,0.00024657,2]
[320241029,1711225848181,-500.0,0.00024657,2]
[320241031,1711225848190,-500.0,0.00024657,2]
[320241033,1711225848200,-5244.27,0.00024657,2]
[320241035,1711225848209,-998.14,0.00024657,2]
[320241037,1711225848218,-500.0,0.00024657,2]
[320241039,1711225848228,-500.0,0.00024657,2]
[320241041,1711225848237,-500.0,0.00024657,2]
[320241043,1711225848249,-166.666666,0.00024658,2]
[320241045,1711225848259,-400.0,0.000248,2]
[320241047,1711225848268,-411.10291985,0.00024837,2]
[320241049,1711225848277,-373.30481564,0.00024864,2]
[320241051,1711225848286,-2187.6020904,0.0002487,2]
[320241053,1711225848295,-151.81010871,0.0002487,2]
[320241054,1711225848304,-1162.386096,0.0002487,2]
[320241056,1711225848314,-1162.386096,0.0002487,2]
[320241059,1711225848324,-5059.66861472,0.0002488,2]
[320241164,1711225849407,-2139.78867618,0.0002488,2]
[320241167,1711225849420,-324.495,0.0002488,2]
[320244155,1711226525152,10000.0,0.000206,2]
[320244156,1711226753747,150.0,0.000189,2]
[320244263,1711227032590,-325.93484737,0.0002358,2]
[320244266,1711227032600,-691.820856,0.00023581,2]
[320244270,1711227032609,-260.27194,0.00023581,2]
[320244273,1711227032620,-173.514628,0.00023581,2]
[320244276,1711227032630,-172.955214,0.00023581,2]
[320244279,1711227032640,-691.820856,0.00023876,2]
[320244283,1711227032652,-260.27194,0.00023876,2]
[320244287,1711227032661,-173.514628,0.00023876,2]
[320244291,1711227032671,-172.955214,0.00023876,2]
[320244295,1711227032680,-150.0,0.000239,2]
[320244299,1711227032689,-600.20886374,0.0002397,2]
[320244303,1711227032698,-426.36006996,0.0002397,2]
[320244307,1711227032707,-5797.3939537,0.0002398,2]
[320244311,1711227032716,-435.34462987,0.00023999,2]
[320244314,1711227032725,-199531.67927737,0.00024,2]
[320244866,1711227038550,-347.3,0.00024,2]
[320244867,1711227038563,-22754.9,0.00024,2]
[320244868,1711227040711,-13135.0174085,0.00024,2]
[320245320,1711227046757,-63652.47627129,0.00024,2]
[320246840,1711227277728,2536.90007179,0.0002,2]
[320246841,1711227529468,-325.93484737,0.0002358,2]
[320246842,1711227529489,-170.117746,0.00023581,2]
[320246843,1711227529512,-322.50861399,0.00023998,2]
[320246844,1711227529532,-239.55995462,0.00023999,2]
[320246845,1711227529552,-4896.87883802,0.00023999,2]
[320247244,1711228237851,-325.93484737,0.00022999,2]
[320247246,1711228237861,-186.57626995,0.00022999,2]
[320247248,1711228237870,-677.68099188,0.00023,2]
[320247253,1711228237904,-3352.99793242,0.00023,2]
[320247365,1711228239915,-4241.19277611,0.00023,2]
[320249344,1711229431958,-779.94063236,0.00021554,2]
[320249346,1711229431968,-325.93484737,0.00021554,2]
[320249348,1711229431977,-160.322499,0.00021555,2]
[320249350,1711229431989,-229.455257,0.00021999,2]
[320249352,1711229432000,-13573.32115932,0.00021999,2]
[320249355,1711229432014,-11306.67884068,0.00021999,2]
[320249357,1711229432024,-239.89810597,0.00022998,2]
[320249358,1711229432034,-3289.69258488,0.00022998,2]
[320249360,1711229432045,-405.14954919,0.00022998,2]
[320249362,1711229432057,-863.54495364,0.00022998,2]
[320249365,1711229432067,-997.52079434,0.00022998,2]
[320249366,1711229432078,-1588.69622234,0.00022998,2]
[320249368,1711229432088,-7454.52681758,0.00022998,2]
[320249370,1711229432102,-561.60556469,0.00022998,2]
[320249372,1711229432112,-305.19507696,0.00022999,2]
[320249374,1711229432123,-291.20427432,0.00022999,2]
[320249376,1711229432132,-398.7815717,0.00022999,2]
[320249378,1711229432142,-5428.69484915,0.00023,2]
[320249933,1711229437907,-509.65,0.00023,2]
[320250602,1711229446679,-24346.42833589,0.00023,2]
[320256805,1711230632363,-304.95131354,0.0002167,2]
[320256806,1711230632373,-3507.17728851,0.00021671,2]
[320256807,1711230632382,-191.13832227,0.00021672,2]
[320260206,1711230671413,225.35262947,0.00019571,2]
[320262453,1711230810596,538284.35424205,0.00024787,60]
[320262545,1711231832378,-488.09509367,0.00021571,2]
[320262546,1711231832389,-608.65343544,0.00021571,2]
[320262547,1711231832399,-325.93484737,0.00021572,2]
[320262548,1711231832410,-180.14012251,0.00021572,2]
[320262549,1711231832421,-304.95131354,0.00021573,2]
[320262550,1711231832431,-302.44791801,0.00021573,2]
[320262551,1711231832442,-683.677196,0.00021573,2]
[320262552,1711231832453,-291.20427432,0.00021574,2]
[320262553,1711231832464,-1761.17713097,0.00021574,2]
[320262554,1711231832474,-6373.80265034,0.00021628,2]
[320262555,1711231832484,-155.0,0.00021654,2]
[320262556,1711231832493,-160.322499,0.00021694,2]
[320262557,1711231832503,-150.23508631,0.00022687,2]
[320262558,1711231832513,-3497.600452,0.00022962,2]
[320262559,1711231832524,-207.26077988,0.00022998,2]
[320262560,1711231832533,-155.35319388,0.00022998,2]
[320262561,1711231832543,-1570.60595844,0.00022998,2]
[320262562,1711231832553,-1020.16589285,0.00022998,2]
[320262563,1711231832564,-322.50861399,0.00022998,2]
[320262564,1711231832574,-1535.62867651,0.00022998,2]
[320262565,1711231832585,-1838.75641273,0.00022998,2]
[320262566,1711231832598,-155.05737123,0.00022998,2]
[320262567,1711231832610,-1219.1181017,0.00022998,2]
[320262568,1711231832621,-1572.84687336,0.00022998,2]
[320262569,1711231832633,-343.90502175,0.00022998,2]
[320262570,1711231832645,-186.40645426,0.00022998,2]
[320262571,1711231832656,-1016.089671,0.00022998,2]
[320262572,1711231832669,-1016.089671,0.00022998,2]
[320262573,1711231832680,-350.979307,0.00022998,2]
[320262574,1711231832690,-350.979307,0.00022998,2]
[320262575,1711231832700,-151.0,0.00022998,2]
[320262576,1711231832710,-893.88370187,0.00022999,2]
[320262577,1711231832720,-300.47981413,0.00022999,2]
[320262578,1711231832730,-209.01983337,0.00022999,2]
[320262579,1711231832740,-886.53014666,0.00022999,2]
[320262580,1711231832750,-407.03630987,0.00022999,2]
[320262581,1711231832760,-458.76860915,0.00022999,2]
[320262582,1711231832770,-182.84392161,0.00022999,2]
[320262583,1711231832780,-431.21771945,0.00022999,2]
[320262584,1711231832790,-445.20630345,0.00022999,2]
[320262585,1711231832800,-500.0,0.00022999,2]
[320262586,1711231832810,-151.0,0.00022999,2]
[320262587,1711231832822,-151.0,0.00022999,2]
[320262588,1711231832831,-151.0,0.00022999,2]
[320262589,1711231832842,-260.674959,0.00022999,2]
[320262590,1711231832852,-151.0,0.00022999,2]
[320262591,1711231832863,-151.0,0.00022999,2]
[320262592,1711231832873,-367.80084727,0.00022999,2]
[320262593,1711231832883,-1016.089671,0.00022999,2]
[320262594,1711231832893,-1016.089671,0.00022999,2]
[320262595,1711231832903,-1016.089671,0.00022999,2]
[320262596,1711231832912,-1016.089671,0.00022999,2]
[320262597,1711231832924,-350.979307,0.00022999,2]
[320262598,1711231832933,-350.979307,0.00022999,2]
[320262599,1711231832943,-350.979307,0.00022999,2]
[320262600,1711231832952,-350.979307,0.00022999,2]
[320262601,1711231832961,-151.0,0.00022999,2]
[320262602,1711231832970,-151.0,0.00022999,2]
[320262603,1711231832979,-20880.99314703,0.00023,2]
[320262613,1711231838330,-192.2451728,0.00021081,2]
[320262614,1711231838340,-877.08592788,0.00022686,2]
[320262615,1711231838349,-24815.07629137,0.00023,2]
[320262634,1711231840478,-13646.35803709,0.00023,2]
[320262635,1711231840492,-2244.48062604,0.00023,2]
[320262636,1711231840606,-34234.64934476,0.00023,2]
[320262637,1711231840616,-156.08933,0.00023,2]
[320262638,1711231840625,-151.0,0.00023,2]
[320262639,1711231840635,-151.0,0.00023,2]
[320262640,1711231840643,-400.0,0.00023,2]
[320262641,1711231840652,-151.0,0.00023,2]
[320262642,1711231840661,-1016.089671,0.00023,2]
[320262643,1711231840672,-1016.089671,0.00023,2]
[320262644,1711231840681,-350.979307,0.00023,2]
[320262645,1711231840690,-350.979307,0.00023,2]
[320262646,1711231840699,-151.0,0.00023,2]
[320262647,1711231840708,-170.117746,0.00023581,2]
[320262648,1711231840717,-397.39948919,0.00023608,2]
[320262649,1711231840726,-1016.089671,0.00023608,2]
[320262650,1711231840735,-1016.089671,0.00023608,2]
[320262651,1711231840744,-350.979307,0.00023608,2]
[320262652,1711231840753,-350.979307,0.00023608,2]
[320262653,1711231840761,-151.0,0.00023608,2]
[320262654,1711231840771,-397.39948919,0.00023726,2]
[320262655,1711231840780,-624.36142661,0.00023792,2]
[320262656,1711231840789,-622.13222741,0.000238,2]
[320262657,1711231840798,-151.0,0.000238,2]
[320262658,1711231840807,-306.0,0.00023852,2]
[320262659,1711231840816,-153.0,0.000239,2]
[320262660,1711231840824,-153.0,0.000239,2]
[320262661,1711231840833,-151.0,0.000239,2]
[320262662,1711231840842,-151.0,0.000239,2]
[320262663,1711231840852,-24633.85299478,0.000239,2]
[320262664,1711231840861,-1016.089671,0.000239,2]
[320262665,1711231840871,-1016.089671,0.000239,2]
[320262666,1711231840880,-1016.089671,0.000239,2]
[320262667,1711231840890,-1016.089671,0.000239,2]
[320262668,1711231840899,-350.979307,0.000239,2]
[320262669,1711231840907,-350.979307,0.000239,2]
[320262670,1711231840917,-151.0,0.000239,2]
[320262671,1711231840929,-160.95956073,0.00023999,2]
[320262672,1711231840937,-5808.46456568,0.00024,2]
[320263592,1711233046722,-291.20427432,0.00021754,2]
[320263593,1711233046731,-325.93484737,0.00021755,2]
[320263595,1711233046740,-304.95131354,0.00021756,2]
[320263597,1711233046750,-200.15672421,0.000218,2]
[320263599,1711233046759,-877.08592788,0.0002217,2]
[320263601,1711233046768,-157.64663537,0.00022533,2]
[320263603,1711233046778,-395.7275146,0.00022534,2]